[Event "Titled Tuesday Blitz May 25 2021"]
[White "Zhigalko, Sergei"]
[Black "Dowgird, Filip"]
[WhiteFideId "13502956"]
[BlackFideId "1121235"]
[WhiteElo "2662"]
[BlackElo "2209"]
[Result "1-0"]
[Round "07"]
[TimeControl "180+1"]
[Date "2021.05.25"]
[WhiteClock "0:00:08"]
[BlackClock "0:00:02"]

1. e4 {[%clk 0:03:00]}  d6 {[%clk 0:03:00]} 2. d4 {[%clk 0:03:01]}  Nf6 {[%clk 0:03:00]} 3. Nc3 {[%clk 0:03:00]}  c6 {[%clk 0:03:01]} 4. Nf3 {[%clk 0:03:00]}  Bg4 {[%clk 0:03:00]} 5. h3 {[%clk 0:02:58]}  Bh5 {[%clk 0:03:00]} 6. Be3 {[%clk 0:02:58]}  e6 {[%clk 0:03:00]} 7. Be2 {[%clk 0:02:57]}  d5 {[%clk 0:03:00]} 8. Nd2 {[%clk 0:02:57]}  Bxe2 {[%clk 0:02:52]} 9. Qxe2 {[%clk 0:02:57]}  Bb4 {[%clk 0:02:49]} 10. e5 {[%clk 0:02:49]}  Nfd7 {[%clk 0:02:49]} 11. Qg4 {[%clk 0:02:49]}  Kf8 {[%clk 0:02:45]} 12. O-O {[%clk 0:02:49]}  h5 {[%clk 0:02:45]} 13. Qg3 {[%clk 0:02:41]}  c5 {[%clk 0:02:31]} 14. Nf3 {[%clk 0:02:34]}  cxd4 {[%clk 0:02:26]} 15. Nxd4 {[%clk 0:02:33]}  Bxc3 {[%clk 0:02:25]} 16. bxc3 {[%clk 0:02:33]}  Nc6 {[%clk 0:02:25]} 17. c4 {[%clk 0:02:27]}  Nxd4 {[%clk 0:02:16]} 18. Bxd4 {[%clk 0:02:25]}  dxc4 {[%clk 0:02:16]} 19. Rad1 {[%clk 0:02:23]}  Qc7 {[%clk 0:01:56]} 20. Bb2 {[%clk 0:02:09]}  Rh6 {[%clk 0:01:35]} 21. Rd6 {[%clk 0:02:03]}  Kg8 {[%clk 0:01:19]} 22. Bd4 {[%clk 0:01:31]}  Nf8 {[%clk 0:01:07]} 23. Rd1 {[%clk 0:01:28]}  b6 {[%clk 0:00:59]} 24. Be3 {[%clk 0:01:21]}  Rg6 {[%clk 0:00:52]} 25. Qf3 {[%clk 0:01:21]}  Rc8 {[%clk 0:00:51]} 26. Qxh5 {[%clk 0:01:19]}  Qb7 {[%clk 0:00:51]} 27. g3 {[%clk 0:01:13]}  Qe4 {[%clk 0:00:41]} 28. R6d4 {[%clk 0:00:33]}  Qxc2 {[%clk 0:00:30]} 29. Rh4 {[%clk 0:00:31]}  Rh6 {[%clk 0:00:13]} 30. Bxh6 {[%clk 0:00:31]}  Ng6 {[%clk 0:00:12]} 31. Rhd4 {[%clk 0:00:15]}  gxh6 {[%clk 0:00:08]} 32. Qxh6 {[%clk 0:00:16]}  Rf8 {[%clk 0:00:04]} 33. Rd8 {[%clk 0:00:14]}  c3 {[%clk 0:00:02]} 34. h4 {[%clk 0:00:09]}  Qxd1+ {[%clk 0:00:02]} 35. Rxd1 {[%clk 0:00:09]}  c2 {[%clk 0:00:02]} 36. Rc1 {[%clk 0:00:09]}  Rc8 {[%clk 0:00:02]} 37. Qg5 {[%clk 0:00:09]}  Rc5 {[%clk 0:00:02]} 38. h5 {[%clk 0:00:08]}  Rxe5 {[%clk 0:00:02]} 39. Qd8+ {[%clk 0:00:08]} 1-0


[Site "https://www.chess.com"]

[Event "Titled Tuesday Blitz May 25 2021"]
[White "Zhukova, Natalia"]
[Black "Nouri, Alekhine"]
[WhiteFideId "14101513"]
[BlackFideId "5216184"]
[WhiteElo "2369"]
[BlackElo "1894"]
[Result "1-0"]
[Round "07"]
[TimeControl "180+1"]
[Date "2021.05.25"]
[WhiteClock "0:00:44"]
[BlackClock "0:02:03"]

1. c4 {[%clk 0:03:00]}  Nf6 {[%clk 0:02:59]} 2. Nc3 {[%clk 0:03:01]}  c5 {[%clk 0:02:59]} 3. Nf3 {[%clk 0:03:00]}  Nc6 {[%clk 0:02:59]} 4. d4 {[%clk 0:02:52]}  cxd4 {[%clk 0:03:00]} 5. Nxd4 {[%clk 0:02:52]}  g6 {[%clk 0:03:00]} 6. e4 {[%clk 0:02:52]}  Bg7 {[%clk 0:02:59]} 7. Be3 {[%clk 0:02:52]}  O-O {[%clk 0:02:59]} 8. Be2 {[%clk 0:02:52]}  d6 {[%clk 0:03:00]} 9. O-O {[%clk 0:02:53]}  Bd7 {[%clk 0:03:00]} 10. h3 {[%clk 0:02:53]}  a6 {[%clk 0:03:01]} 11. Nf3 {[%clk 0:02:50]}  Rc8 {[%clk 0:03:01]} 12. Rc1 {[%clk 0:02:50]}  Qa5 {[%clk 0:03:00]} 13. a3 {[%clk 0:02:48]}  Rfd8 {[%clk 0:02:56]} 14. Nd2 {[%clk 0:02:43]}  Be6 {[%clk 0:02:53]} 15. f4 {[%clk 0:02:26]}  b5 {[%clk 0:02:48]} 16. cxb5 {[%clk 0:02:16]}  axb5 {[%clk 0:02:49]} 17. Bxb5 {[%clk 0:02:15]}  Na7 {[%clk 0:02:47]} 18. Be2 {[%clk 0:01:58]}  d5 {[%clk 0:02:43]} 19. Nb3 {[%clk 0:01:48]}  Qc7 {[%clk 0:02:31]} 20. Nxd5 {[%clk 0:01:46]}  Nxd5 {[%clk 0:02:29]} 21. Rxc7 {[%clk 0:01:43]}  Nxc7 {[%clk 0:02:29]} 22. Qb1 {[%clk 0:01:16]}  Bxb3 {[%clk 0:02:19]} 23. Bxa7 {[%clk 0:01:15]}  Rd2 {[%clk 0:02:20]} 24. Bg4 {[%clk 0:00:56]}  Ra8 {[%clk 0:02:11]} 25. Bb6 {[%clk 0:00:51]}  Nb5 {[%clk 0:02:11]} 26. e5 {[%clk 0:00:49]}  f6 {[%clk 0:02:09]} 27. Qe4 {[%clk 0:00:45]}  f5 {[%clk 0:02:03]} 28. Qxa8+ {[%clk 0:00:44]} 1-0


[Site "https://www.chess.com"]

[Event "Titled Tuesday Blitz May 25 2021"]
[White "Zubov, Alexander"]
[Black "Wagh Suyog"]
[WhiteFideId "14109409"]
[BlackFideId "25071688"]
[WhiteElo "2740"]
[BlackElo "2219"]
[Result "1-0"]
[Round "07"]
[TimeControl "180+1"]
[Date "2021.05.25"]
[WhiteClock "0:00:31"]
[BlackClock "0:00:37"]

1. d4 {[%clk 0:03:00]}  Nf6 {[%clk 0:02:55]} 2. c4 {[%clk 0:03:00]}  e6 {[%clk 0:02:55]} 3. Nc3 {[%clk 0:03:00]}  Bb4 {[%clk 0:02:53]} 4. Nf3 {[%clk 0:03:00]}  O-O {[%clk 0:02:53]} 5. Bg5 {[%clk 0:03:00]}  d6 {[%clk 0:02:51]} 6. e3 {[%clk 0:02:56]}  Nc6 {[%clk 0:02:49]} 7. Qc2 {[%clk 0:02:51]}  h6 {[%clk 0:02:48]} 8. Bh4 {[%clk 0:02:51]}  Bxc3+ {[%clk 0:02:48]} 9. Qxc3 {[%clk 0:02:49]}  Qe7 {[%clk 0:02:45]} 10. Qc2 {[%clk 0:02:37]}  e5 {[%clk 0:02:45]} 11. d5 {[%clk 0:02:35]}  Nb8 {[%clk 0:02:44]} 12. Nd2 {[%clk 0:02:32]}  a5 {[%clk 0:02:41]} 13. f3 {[%clk 0:02:24]}  Nbd7 {[%clk 0:02:14]} 14. Be2 {[%clk 0:02:22]}  Nc5 {[%clk 0:02:10]} 15. O-O {[%clk 0:02:18]}  g5 {[%clk 0:02:09]} 16. Bf2 {[%clk 0:02:16]}  Kg7 {[%clk 0:02:06]} 17. Nb1 {[%clk 0:01:59]}  Nh7 {[%clk 0:01:58]} 18. Nc3 {[%clk 0:01:58]}  f5 {[%clk 0:01:58]} 19. f4 {[%clk 0:01:57]}  Nf6 {[%clk 0:01:54]} 20. Bf3 {[%clk 0:01:53]}  Bd7 {[%clk 0:01:47]} 21. Kh1 {[%clk 0:01:38]}  Rae8 {[%clk 0:01:42]} 22. Rad1 {[%clk 0:01:31]}  b6 {[%clk 0:01:24]} 23. b3 {[%clk 0:01:27]}  Bc8 {[%clk 0:01:22]} 24. a3 {[%clk 0:01:25]}  g4 {[%clk 0:01:02]} 25. Be2 {[%clk 0:01:24]}  Nfe4 {[%clk 0:01:03]} 26. Be1 {[%clk 0:01:23]}  exf4 {[%clk 0:00:57]} 27. exf4 {[%clk 0:01:05]}  Kh7 {[%clk 0:00:57]} 28. Nb5 {[%clk 0:01:04]}  Ba6 {[%clk 0:00:54]} 29. Nd4 {[%clk 0:01:03]}  a4 {[%clk 0:00:49]} 30. bxa4 {[%clk 0:00:47]}  Bc8 {[%clk 0:00:45]} 31. a5 {[%clk 0:00:47]}  h5 {[%clk 0:00:40]} 32. axb6 {[%clk 0:00:46]}  cxb6 {[%clk 0:00:41]} 33. Rb1 {[%clk 0:00:45]}  Qa7 {[%clk 0:00:39]} 34. Nb5 {[%clk 0:00:31]}  Bd7 {[%clk 0:00:37]} 35. Nxa7 {[%clk 0:00:31]} 1-0


[Site "https://www.chess.com"]

[Event "Titled Tuesday Blitz May 25 2021"]
[White "davigator"]
[Black "Matinian, Nikita"]
[BlackFideId "24129100"]
[WhiteElo "2441"]
[BlackElo "2410"]
[Result "1-0"]
[Round "07"]
[TimeControl "180+1"]
[Date "2021.05.25"]
[WhiteClock "0:00:56"]
[BlackClock "0:00:34"]

1. e4 {[%clk 0:03:00]}  c5 {[%clk 0:02:52]} 2. Nf3 {[%clk 0:02:49]}  d6 {[%clk 0:02:52]} 3. d4 {[%clk 0:02:49]}  cxd4 {[%clk 0:02:53]} 4. Nxd4 {[%clk 0:02:50]}  Nf6 {[%clk 0:02:53]} 5. Nc3 {[%clk 0:02:50]}  a6 {[%clk 0:02:53]} 6. Bg5 {[%clk 0:02:50]}  Nbd7 {[%clk 0:02:53]} 7. f3 {[%clk 0:02:50]}  g6 {[%clk 0:02:49]} 8. Qd2 {[%clk 0:02:49]}  Qc7 {[%clk 0:02:44]} 9. O-O-O {[%clk 0:02:49]}  b5 {[%clk 0:02:44]} 10. Bd3 {[%clk 0:02:45]}  Bb7 {[%clk 0:02:44]} 11. Kb1 {[%clk 0:02:45]}  b4 {[%clk 0:02:36]} 12. Nce2 {[%clk 0:02:45]}  Nc5 {[%clk 0:02:36]} 13. Qxb4 {[%clk 0:02:37]}  Bg7 {[%clk 0:02:33]} 14. Qd2 {[%clk 0:02:37]}  O-O {[%clk 0:02:33]} 15. Bh6 {[%clk 0:02:36]}  Rab8 {[%clk 0:02:32]} 16. Bxg7 {[%clk 0:02:36]}  Kxg7 {[%clk 0:02:33]} 17. h4 {[%clk 0:02:36]}  h5 {[%clk 0:02:31]} 18. Nb3 {[%clk 0:02:30]}  Rfc8 {[%clk 0:02:29]} 19. Ka1 {[%clk 0:02:29]}  Nxb3+ {[%clk 0:02:23]} 20. cxb3 {[%clk 0:02:29]}  d5 {[%clk 0:02:23]} 21. exd5 {[%clk 0:02:26]}  Nxd5 {[%clk 0:02:24]} 22. Rc1 {[%clk 0:02:25]}  Qe5 {[%clk 0:02:21]} 23. Be4 {[%clk 0:02:22]}  Rxc1+ {[%clk 0:02:14]} 24. Rxc1 {[%clk 0:02:21]}  Nf6 {[%clk 0:02:14]} 25. Bxb7 {[%clk 0:02:18]}  Rxb7 {[%clk 0:02:15]} 26. Nc3 {[%clk 0:02:07]}  Qg3 {[%clk 0:02:11]} 27. Qe2 {[%clk 0:02:01]}  a5 {[%clk 0:02:05]} 28. Ne4 {[%clk 0:01:32]}  Qxh4 {[%clk 0:02:01]} 29. Nxf6 {[%clk 0:01:31]}  Qxf6 {[%clk 0:02:00]} 30. Qc4 {[%clk 0:01:25]}  Rd7 {[%clk 0:01:55]} 31. a3 {[%clk 0:01:20]}  Rd2 {[%clk 0:01:55]} 32. Rc2 {[%clk 0:01:20]}  Rd1+ {[%clk 0:01:55]} 33. Ka2 {[%clk 0:01:21]}  h4 {[%clk 0:01:54]} 34. Qc3 {[%clk 0:01:19]}  Qxc3 {[%clk 0:01:52]} 35. bxc3 {[%clk 0:01:19]}  Kf6 {[%clk 0:01:41]} 36. c4 {[%clk 0:01:17]}  Ke6 {[%clk 0:01:42]} 37. b4 {[%clk 0:01:13]}  axb4 {[%clk 0:01:41]} 38. axb4 {[%clk 0:01:13]}  Kd6 {[%clk 0:01:41]} 39. Kb3 {[%clk 0:01:11]}  e5 {[%clk 0:01:41]} 40. Re2 {[%clk 0:01:08]}  f5 {[%clk 0:01:40]} 41. Ka4 {[%clk 0:01:07]}  g5 {[%clk 0:01:37]} 42. Kb5 {[%clk 0:01:06]}  g4 {[%clk 0:01:36]} 43. fxg4 {[%clk 0:01:05]}  fxg4 {[%clk 0:01:37]} 44. Kb6 {[%clk 0:01:04]}  Rd4 {[%clk 0:01:36]} 45. c5+ {[%clk 0:01:04]}  Kd5 {[%clk 0:01:25]} 46. b5 {[%clk 0:01:04]}  h3 {[%clk 0:01:24]} 47. gxh3 {[%clk 0:01:03]}  gxh3 {[%clk 0:01:25]} 48. c6 {[%clk 0:01:04]}  Kd6 {[%clk 0:00:55]} 49. Kb7 {[%clk 0:01:02]}  Rc4 {[%clk 0:00:34]} 50. b6 {[%clk 0:00:56]} 1-0


[Site "https://www.chess.com"]

[Event "Titled Tuesday Blitz May 25 2021"]
[White "elcandado"]
[Black "Vega Gutierrez, Sabrina"]
[BlackFideId "2219026"]
[WhiteElo "2632"]
[BlackElo "2281"]
[Result "1-0"]
[Round "07"]
[TimeControl "180+1"]
[Date "2021.05.25"]
[WhiteClock "0:00:07"]
[BlackClock "0:00:08"]

1. d4 {[%clk 0:03:00]}  d5 {[%clk 0:02:50]} 2. Bf4 {[%clk 0:02:59]}  Nf6 {[%clk 0:02:47]} 3. e3 {[%clk 0:02:59]}  e6 {[%clk 0:02:42]} 4. Nd2 {[%clk 0:02:58]}  Bd6 {[%clk 0:02:28]} 5. Bg3 {[%clk 0:02:57]}  O-O {[%clk 0:02:27]} 6. Bd3 {[%clk 0:02:57]}  b6 {[%clk 0:02:22]} 7. e4 {[%clk 0:02:57]}  dxe4 {[%clk 0:02:08]} 8. Nxe4 {[%clk 0:02:56]}  Bb7 {[%clk 0:02:09]} 9. Qe2 {[%clk 0:02:56]}  Nxe4 {[%clk 0:02:01]} 10. Bxe4 {[%clk 0:02:56]}  Bxe4 {[%clk 0:02:01]} 11. Qxe4 {[%clk 0:02:57]}  Nd7 {[%clk 0:02:01]} 12. Nf3 {[%clk 0:02:58]}  Nf6 {[%clk 0:01:57]} 13. Qe2 {[%clk 0:02:57]}  c5 {[%clk 0:01:57]} 14. dxc5 {[%clk 0:02:49]}  Bxc5 {[%clk 0:01:44]} 15. O-O {[%clk 0:02:46]}  Rc8 {[%clk 0:01:40]} 16. c3 {[%clk 0:02:43]}  Nd5 {[%clk 0:01:34]} 17. Rad1 {[%clk 0:02:38]}  Qe7 {[%clk 0:01:20]} 18. Rd3 {[%clk 0:02:31]}  Qb7 {[%clk 0:01:17]} 19. Rfd1 {[%clk 0:02:27]}  Be7 {[%clk 0:01:16]} 20. h3 {[%clk 0:01:55]}  Rfd8 {[%clk 0:01:04]} 21. Ne5 {[%clk 0:01:49]}  Nf6 {[%clk 0:00:50]} 22. Bh4 {[%clk 0:01:27]}  h6 {[%clk 0:00:41]} 23. Bxf6 {[%clk 0:01:20]}  Bxf6 {[%clk 0:00:40]} 24. Rd7 {[%clk 0:01:06]}  Rxd7 {[%clk 0:00:40]} 25. Rxd7 {[%clk 0:01:07]}  Rc7 {[%clk 0:00:40]} 26. Rd1 {[%clk 0:01:01]}  Rc5 {[%clk 0:00:34]} 27. Nd7 {[%clk 0:00:57]}  Rd5 {[%clk 0:00:26]} 28. Nxf6+ {[%clk 0:00:57]}  gxf6 {[%clk 0:00:27]} 29. Qg4+ {[%clk 0:00:49]}  Kf8 {[%clk 0:00:27]} 30. Rxd5 {[%clk 0:00:44]}  Qxd5 {[%clk 0:00:26]} 31. Qf4 {[%clk 0:00:44]}  Qxa2 {[%clk 0:00:24]} 32. Qxh6+ {[%clk 0:00:44]}  Ke7 {[%clk 0:00:23]} 33. Qd2 {[%clk 0:00:40]}  a5 {[%clk 0:00:21]} 34. h4 {[%clk 0:00:38]}  a4 {[%clk 0:00:20]} 35. Qc1 {[%clk 0:00:38]}  Qc4 {[%clk 0:00:19]} 36. Qh6 {[%clk 0:00:35]}  Qe2 {[%clk 0:00:17]} 37. Qc1 {[%clk 0:00:26]}  Qg4 {[%clk 0:00:15]} 38. g3 {[%clk 0:00:25]}  f5 {[%clk 0:00:14]} 39. Qa1 {[%clk 0:00:19]}  b5 {[%clk 0:00:12]} 40. Qa3+ {[%clk 0:00:18]}  Kf6 {[%clk 0:00:11]} 41. Qb4 {[%clk 0:00:19]}  Qd1+ {[%clk 0:00:10]} 42. Kh2 {[%clk 0:00:17]}  Kg6 {[%clk 0:00:10]} 43. Qf4 {[%clk 0:00:15]}  Qe2 {[%clk 0:00:10]} 44. Qg5+ {[%clk 0:00:15]}  Kh7 {[%clk 0:00:10]} 45. Kg1 {[%clk 0:00:14]}  Qxb2 {[%clk 0:00:09]} 46. Qf6 {[%clk 0:00:14]}  Kg8 {[%clk 0:00:09]} 47. h5 {[%clk 0:00:13]}  b4 {[%clk 0:00:08]} 48. Qg5+ {[%clk 0:00:09]}  Kh7 {[%clk 0:00:07]} 49. Qf6 {[%clk 0:00:07]}  Qxc3 {[%clk 0:00:07]} 50. Qxf7+ {[%clk 0:00:07]}  Kh6 {[%clk 0:00:08]} 51. Qg6# {[%clk 0:00:07]} 1-0


[Site "https://www.chess.com"]

[Event "Titled Tuesday Blitz May 25 2021"]
[White "Abdusattorov, Nodirbek"]
[Black "Shapkin, Anatoliy"]
[WhiteFideId "14204118"]
[BlackFideId "34108332"]
[WhiteElo "2662"]
[BlackElo "2223"]
[Result "1/2-1/2"]
[Round "08"]
[TimeControl "180+1"]
[Date "2021.05.25"]
[WhiteClock "0:00:05"]
[BlackClock "0:00:06"]

1. e4 {[%clk 0:03:00]}  e5 {[%clk 0:02:59]} 2. Nf3 {[%clk 0:03:00]}  Nc6 {[%clk 0:02:59]} 3. Bc4 {[%clk 0:02:59]}  Bc5 {[%clk 0:02:59]} 4. b4 {[%clk 0:02:59]}  Bb6 {[%clk 0:02:59]} 5. O-O {[%clk 0:02:57]}  Nf6 {[%clk 0:02:58]} 6. d3 {[%clk 0:02:57]}  d6 {[%clk 0:02:59]} 7. c3 {[%clk 0:02:55]}  O-O {[%clk 0:02:58]} 8. Bg5 {[%clk 0:02:54]}  h6 {[%clk 0:02:58]} 9. Bh4 {[%clk 0:02:54]}  g5 {[%clk 0:02:58]} 10. Nxg5 {[%clk 0:02:54]}  hxg5 {[%clk 0:02:58]} 11. Bxg5 {[%clk 0:02:55]}  Kg7 {[%clk 0:02:59]} 12. Nd2 {[%clk 0:02:55]}  Rh8 {[%clk 0:02:59]} 13. Bb3 {[%clk 0:02:47]}  Be6 {[%clk 0:02:40]} 14. Nc4 {[%clk 0:02:45]}  Qd7 {[%clk 0:02:31]} 15. Nxb6 {[%clk 0:02:42]}  axb6 {[%clk 0:02:32]} 16. f4 {[%clk 0:02:42]}  Bxb3 {[%clk 0:02:16]} 17. Qxb3 {[%clk 0:02:39]}  Ng4 {[%clk 0:02:16]} 18. h3 {[%clk 0:02:30]}  f6 {[%clk 0:02:14]} 19. fxe5 {[%clk 0:02:27]}  dxe5 {[%clk 0:01:42]} 20. Bd2 {[%clk 0:01:54]}  Qxd3 {[%clk 0:01:31]} 21. Rad1 {[%clk 0:01:54]}  Qxe4 {[%clk 0:00:51]} 22. hxg4 {[%clk 0:01:50]}  Qxg4 {[%clk 0:00:52]} 23. Rf3 {[%clk 0:01:36]}  Rh5 {[%clk 0:00:40]} 24. Be1 {[%clk 0:01:33]}  Rg5 {[%clk 0:00:38]} 25. Rg3 {[%clk 0:01:32]}  Qf5 {[%clk 0:00:26]} 26. Rxg5+ {[%clk 0:01:32]}  fxg5 {[%clk 0:00:27]} 27. Bg3 {[%clk 0:01:28]}  Rf8 {[%clk 0:00:22]} 28. b5 {[%clk 0:01:21]}  Ne7 {[%clk 0:00:20]} 29. Re1 {[%clk 0:01:16]}  Ng6 {[%clk 0:00:20]} 30. Qc4 {[%clk 0:01:13]}  Rf7 {[%clk 0:00:20]} 31. a4 {[%clk 0:01:08]}  Nf4 {[%clk 0:00:20]} 32. Re3 {[%clk 0:01:00]}  Re7 {[%clk 0:00:20]} 33. Qf1 {[%clk 0:00:55]}  Rf7 {[%clk 0:00:17]} 34. Qc4 {[%clk 0:00:52]}  Re7 {[%clk 0:00:16]} 35. Qf1 {[%clk 0:00:45]}  Rf7 {[%clk 0:00:15]} 36. Qe1 {[%clk 0:00:45]}  Re7 {[%clk 0:00:12]} 37. c4 {[%clk 0:00:46]}  Kg6 {[%clk 0:00:12]} 38. Qc3 {[%clk 0:00:43]}  e4 {[%clk 0:00:11]} 39. Be1 {[%clk 0:00:41]}  Qe5 {[%clk 0:00:11]} 40. Qc2 {[%clk 0:00:40]}  Qd4 {[%clk 0:00:11]} 41. Bd2 {[%clk 0:00:20]}  Kf5 {[%clk 0:00:07]} 42. Qc3 {[%clk 0:00:19]}  Qxc3 {[%clk 0:00:07]} 43. Bxc3 {[%clk 0:00:19]}  Rd7 {[%clk 0:00:08]} 44. Kh2 {[%clk 0:00:17]}  Rd3 {[%clk 0:00:08]} 45. Rxd3 {[%clk 0:00:15]}  exd3 {[%clk 0:00:08]} 46. Bd2 {[%clk 0:00:15]}  Ne6 {[%clk 0:00:07]} 47. Kg3 {[%clk 0:00:14]}  Ke4 {[%clk 0:00:04]} 48. Kg4 {[%clk 0:00:14]}  Kd4 {[%clk 0:00:05]} 49. Kf5 {[%clk 0:00:13]}  Nc5 {[%clk 0:00:05]} 50. Bxg5 {[%clk 0:00:12]}  Ne4 {[%clk 0:00:06]} 51. Bf4 {[%clk 0:00:10]}  d2 {[%clk 0:00:06]} 52. Bxd2 {[%clk 0:00:11]}  Nxd2 {[%clk 0:00:07]} 53. g4 {[%clk 0:00:12]}  Ne4 {[%clk 0:00:07]} 54. Kf4 {[%clk 0:00:11]}  Nd6 {[%clk 0:00:07]} 55. g5 {[%clk 0:00:11]}  Kxc4 {[%clk 0:00:07]} 56. g6 {[%clk 0:00:11]}  Ne8 {[%clk 0:00:07]} 57. Ke5 {[%clk 0:00:11]}  Kb4 {[%clk 0:00:07]} 58. Ke6 {[%clk 0:00:12]}  Ng7+ {[%clk 0:00:08]} 59. Kf6 {[%clk 0:00:12]}  Nh5+ {[%clk 0:00:08]} 60. Kg5 {[%clk 0:00:12]}  Ng7 {[%clk 0:00:08]} 61. Kf6 {[%clk 0:00:12]}  Ne8+ {[%clk 0:00:09]} 62. Ke7 {[%clk 0:00:11]}  Nd6 {[%clk 0:00:08]} 63. a5 {[%clk 0:00:10]}  Kxb5 {[%clk 0:00:06]} 64. axb6 {[%clk 0:00:09]}  Kxb6 {[%clk 0:00:06]} 65. Ke6 {[%clk 0:00:09]}  Ne8 {[%clk 0:00:06]} 66. Kf7 {[%clk 0:00:08]}  Nd6+ {[%clk 0:00:06]} 67. Kf6 {[%clk 0:00:06]}  Ne8+ {[%clk 0:00:06]} 68. Ke7 {[%clk 0:00:05]}  Ng7 {[%clk 0:00:06]} 69. Kf6 {[%clk 0:00:05]}  Nh5+ {[%clk 0:00:06]} 70. Kg5 {[%clk 0:00:05]}  Ng7 {[%clk 0:00:06]} 71. Kf6 {[%clk 0:00:05]}  Ne8+ {[%clk 0:00:07]} 72. Kf7 {[%clk 0:00:04]}  Nd6+ {[%clk 0:00:06]} 73. Ke6 {[%clk 0:00:04]}  Ne8 {[%clk 0:00:06]} 74. Kf7 {[%clk 0:00:05]} 1/2-1/2


[Site "https://www.chess.com"]

[Event "Titled Tuesday Blitz May 25 2021"]
[White "AldokhinIvan"]
[Black "Wong, Yinn Long"]
[BlackFideId "5707684"]
[WhiteElo "2529"]
[BlackElo "2698"]
[Result "1-0"]
[Round "08"]
[TimeControl "180+1"]
[Date "2021.05.25"]
[WhiteClock "0:00:12"]
[BlackClock "0:01:35"]

1. e4 {[%clk 0:03:00]}  c5 {[%clk 0:03:00]} 2. Nf3 {[%clk 0:03:00]}  g6 {[%clk 0:03:00]} 3. d4 {[%clk 0:03:01]}  cxd4 {[%clk 0:03:01]} 4. Nxd4 {[%clk 0:03:01]}  Nc6 {[%clk 0:03:01]} 5. Nc3 {[%clk 0:03:02]}  Bg7 {[%clk 0:03:01]} 6. Be3 {[%clk 0:03:02]}  Nf6 {[%clk 0:03:02]} 7. Bc4 {[%clk 0:03:02]}  O-O {[%clk 0:03:02]} 8. Bb3 {[%clk 0:03:02]}  a5 {[%clk 0:03:03]} 9. f3 {[%clk 0:03:02]}  d5 {[%clk 0:03:04]} 10. Bxd5 {[%clk 0:03:01]}  Nxd5 {[%clk 0:03:03]} 11. Nxd5 {[%clk 0:03:01]}  f5 {[%clk 0:03:01]} 12. Nxc6 {[%clk 0:02:53]}  bxc6 {[%clk 0:03:02]} 13. Nb6 {[%clk 0:02:52]}  Rb8 {[%clk 0:03:03]} 14. Qxd8 {[%clk 0:02:49]}  Rxd8 {[%clk 0:03:03]} 15. Rd1 {[%clk 0:02:49]}  Rxd1+ {[%clk 0:03:02]} 16. Kxd1 {[%clk 0:02:49]}  fxe4 {[%clk 0:03:03]} 17. Nxc8 {[%clk 0:02:46]}  Rxc8 {[%clk 0:03:02]} 18. fxe4 {[%clk 0:02:46]}  Bxb2 {[%clk 0:03:02]} 19. Ke2 {[%clk 0:02:47]}  Be5 {[%clk 0:03:01]} 20. Bc5 {[%clk 0:02:06]}  Kf7 {[%clk 0:02:58]} 21. h3 {[%clk 0:01:59]}  Rb8 {[%clk 0:02:58]} 22. Ba3 {[%clk 0:01:55]}  Ke6 {[%clk 0:02:57]} 23. Rd1 {[%clk 0:01:44]}  Bd6 {[%clk 0:02:41]} 24. Bc1 {[%clk 0:01:31]}  Rb4 {[%clk 0:02:40]} 25. Kd3 {[%clk 0:01:18]}  Ra4 {[%clk 0:02:40]} 26. Bd2 {[%clk 0:00:48]}  Rxa2 {[%clk 0:02:36]} 27. Rb1 {[%clk 0:00:44]}  Ra3+ {[%clk 0:02:35]} 28. c3 {[%clk 0:00:38]}  Ra2 {[%clk 0:02:26]} 29. Rb6 {[%clk 0:00:37]}  c5 {[%clk 0:02:17]} 30. Bf4 {[%clk 0:00:24]}  Rf2 {[%clk 0:01:58]} 31. Be3 {[%clk 0:00:16]}  Rxg2 {[%clk 0:01:52]} 32. Bxc5 {[%clk 0:00:15]}  Rg3+ {[%clk 0:01:52]} 33. Kc4 {[%clk 0:00:15]}  Rxh3 {[%clk 0:01:51]} 34. Bd4 {[%clk 0:00:15]}  Kf7 {[%clk 0:01:37]} 35. e5 {[%clk 0:00:15]}  Ba3 {[%clk 0:01:37]} 36. e6+ {[%clk 0:00:12]}  Ke8 {[%clk 0:01:35]} 37. Rb8# {[%clk 0:00:12]} 1-0


[Site "https://www.chess.com"]

[Event "Titled Tuesday Blitz May 25 2021"]
[White "Aliavdin, Nikolai"]
[Black "Turzo, Attila"]
[WhiteFideId "13502883"]
[BlackFideId "704954"]
[WhiteElo "2643"]
[BlackElo "2504"]
[Result "1-0"]
[Round "08"]
[TimeControl "180+1"]
[Date "2021.05.25"]
[WhiteClock "0:00:23"]
[BlackClock "0:00:17"]

1. e4 {[%clk 0:03:00]}  c6 {[%clk 0:02:57]} 2. d4 {[%clk 0:03:00]}  d5 {[%clk 0:02:57]} 3. exd5 {[%clk 0:02:56]}  cxd5 {[%clk 0:02:57]} 4. c4 {[%clk 0:02:57]}  Nf6 {[%clk 0:02:57]} 5. Nc3 {[%clk 0:02:57]}  Nc6 {[%clk 0:02:57]} 6. Bg5 {[%clk 0:02:55]}  Be6 {[%clk 0:02:57]} 7. Nge2 {[%clk 0:02:47]}  h6 {[%clk 0:02:31]} 8. Bxf6 {[%clk 0:02:45]}  exf6 {[%clk 0:02:32]} 9. Nf4 {[%clk 0:02:45]}  Bb4 {[%clk 0:02:31]} 10. Be2 {[%clk 0:02:23]}  O-O {[%clk 0:02:28]} 11. O-O {[%clk 0:02:22]}  Ne7 {[%clk 0:01:58]} 12. a3 {[%clk 0:01:54]}  Bxc3 {[%clk 0:01:45]} 13. bxc3 {[%clk 0:01:55]}  dxc4 {[%clk 0:01:42]} 14. Nxe6 {[%clk 0:01:55]}  fxe6 {[%clk 0:01:43]} 15. Bxc4 {[%clk 0:01:54]}  Nd5 {[%clk 0:01:44]} 16. Qb3 {[%clk 0:01:53]}  Rf7 {[%clk 0:01:28]} 17. Rfe1 {[%clk 0:01:52]}  Nc7 {[%clk 0:01:10]} 18. Qxb7 {[%clk 0:01:35]}  Rb8 {[%clk 0:00:54]} 19. Qe4 {[%clk 0:01:23]}  Re7 {[%clk 0:00:51]} 20. Rab1 {[%clk 0:01:21]}  Kh8 {[%clk 0:00:48]} 21. Bd3 {[%clk 0:01:11]}  f5 {[%clk 0:00:47]} 22. Qe5 {[%clk 0:01:09]}  Rb6 {[%clk 0:00:44]} 23. Rxb6 {[%clk 0:01:07]}  axb6 {[%clk 0:00:45]} 24. Bxf5 {[%clk 0:01:06]}  Nd5 {[%clk 0:00:41]} 25. Bxe6 {[%clk 0:00:56]}  Nxc3 {[%clk 0:00:42]} 26. f4 {[%clk 0:00:44]}  b5 {[%clk 0:00:22]} 27. f5 {[%clk 0:00:44]}  Re8 {[%clk 0:00:21]} 28. d5 {[%clk 0:00:42]}  Na4 {[%clk 0:00:19]} 29. d6 {[%clk 0:00:39]}  Qb6+ {[%clk 0:00:19]} 30. Kh1 {[%clk 0:00:38]}  Nc5 {[%clk 0:00:19]} 31. h3 {[%clk 0:00:30]}  Qc6 {[%clk 0:00:19]} 32. Re3 {[%clk 0:00:26]}  Nd3 {[%clk 0:00:18]} 33. Rxd3 {[%clk 0:00:23]}  Qc1+ {[%clk 0:00:18]} 34. Kh2 {[%clk 0:00:23]}  Qc2 {[%clk 0:00:17]} 35. Rg3 {[%clk 0:00:23]} 1-0


[Site "https://www.chess.com"]